bitfinex/quotes_BTCUSD_20250814
["timestamp","ask_amount","ask_price","bid_price","bid_amount"]
[1755176509105,0.001,118580.0,118570.0,0.57612575]
[1755176509288,0.001,118580.0,118570.0,0.542407]
[1755176509486,0.001,118580.0,118570.0,0.730327]
[1755176509811,0.001,118580.0,118570.0,0.37373027]
[1755176510036,0.004,118580.0,118570.0,0.20224]
[1755176510211,0.004,118580.0,118570.0,0.47344325]
[1755176510212,0.001,118580.0,118570.0,0.47344325]
[1755176510507,0.001,118580.0,118570.0,0.27120325]
[1755176510980,0.001,118580.0,118570.0,0.457329]
[1755176511250,0.001,118580.0,118570.0,0.81361025]
[1755176511444,0.001,118580.0,118570.0,0.84793009]
[1755176512167,0.001,118580.0,118570.0,0.45645352]
[1755176512374,0.001,118580.0,118570.0,0.84669352]
[1755176512601,0.001,118580.0,118570.0,1.01537025]
[1755176512802,0.001,118580.0,118570.0,1.02469009]
[1755176512998,0.001,118580.0,118570.0,1.91202614]
[1755176513206,0.001,118580.0,118570.0,1.05172919]
[1755176513612,0.001,118580.0,118570.0,0.83868919]
[1755176513852,0.001,118580.0,118570.0,1.01521025]
[1755176514056,0.001,118580.0,118570.0,0.81280325]
[1755176514476,0.001,118580.0,118570.0,0.98147998]
[1755176514682,0.001,118580.0,118570.0,0.28492325]
[1755176514863,0.004,118580.0,118570.0,0.47276325]
[1755176515087,0.004,118580.0,118570.0,0.28492325]
[1755176515437,0.1241,118580.0,118570.0,0.28492325]
[1755176515631,0.41333537,118580.0,118560.0,0.18788]
[1755176515832,0.1231,118570.0,118560.0,0.27060325]
[1755176516030,0.30021056,118570.0,118510.0,0.37935271]
[1755176516241,0.07572992,118560.0,118530.0,0.08272325]
[1755176516455,0.07572992,118560.0,118540.0,0.18768]
[1755176516456,0.1231,118550.0,118540.0,0.18768]
[1755176516850,0.29180518,118550.0,118540.0,0.18768]
[1755176517057,0.1231,118550.0,118540.0,0.18768]
[1755176518547,0.1231,118550.0,118540.0,0.02704032]
[1755176518798,0.29180518,118550.0,118540.0,0.18748]
[1755176518971,0.30669716,118550.0,118540.0,0.18748]
[1755176519186,0.13799198,118550.0,118510.0,0.2022]
[1755176519397,0.003,118540.0,118520.0,0.1874]
[1755176519695,0.003,118540.0,118530.0,0.08272325]
[1755176520120,0.29181972,118540.0,118520.0,0.1874]
[1755176520338,0.003,118530.0,118520.0,0.27012325]
[1755176520540,0.01790596,118530.0,118520.0,0.08272325]
[1755176520722,0.17718661,118520.0,118480.0,0.025305]
[1755176520944,0.003,118510.0,118490.0,0.26980325]
[1755176521099,0.01790596,118510.0,118490.0,0.26980325]
[1755176521366,0.01490915,118510.0,118490.0,0.26980325]
[1755176521571,0.01490915,118510.0,118500.0,0.18724]
[1755176521742,0.13500915,118510.0,118500.0,0.26996325]
[1755176521924,0.16538511,118510.0,118460.0,0.396382]
[1755176522125,0.1231,118500.0,118470.0,0.08272325]
[1755176522465,0.1231,118500.0,118470.0,0.27024325]
[1755176522466,0.17179122,118490.0,118470.0,0.27024325]
[1755176522668,0.29190486,118480.0,118470.0,0.27024325]
[1755176522874,0.30681401,118480.0,118470.0,0.18752]
[1755176523084,0.31525425,118480.0,118430.0,0.025316]
[1755176523280,0.003,118470.0,118440.0,0.27884634]
[1755176523548,0.01790915,118470.0,118450.0,0.16884638]
[1755176523833,0.01490915,118470.0,118460.0,0.08272325]
[1755176524026,0.01790915,118470.0,118460.0,0.08272325]
[1755176524270,0.01790915,118470.0,118460.0,0.27080325]
[1755176524271,0.01794034,118470.0,118460.0,0.27080325]
[1755176524514,0.01494034,118470.0,118460.0,0.27080325]
[1755176524883,0.01494034,118470.0,118460.0,0.28776676]
[1755176525130,0.01794034,118470.0,118460.0,0.07260643]
[1755176525329,0.16883562,118460.0,118420.0,0.025317]
[1755176525527,0.12836492,118450.0,118420.0,0.08272325]
[1755176525755,0.12836492,118450.0,118430.0,0.18972]
[1755176525756,0.003,118440.0,118430.0,0.18972]
[1755176525904,0.30690464,118440.0,118420.0,0.08272325]
[1755176526110,0.30041992,118430.0,118400.0,0.0005]
[1755176526317,0.29199039,118420.0,118410.0,0.1896]
[1755176526572,0.16890465,118410.0,118400.0,0.0005]
[1755176526775,0.16890465,118410.0,118360.0,0.48862559]
[1755176526776,0.17738545,118390.0,118360.0,0.48862559]
[1755176526936,0.19232579,118390.0,118380.0,0.1896]
[1755176527136,0.22845172,118390.0,118370.0,0.025328]
[1755176527338,0.05951292,118390.0,118370.0,0.025328]
[1755176527534,0.00317,118380.0,118360.0,0.67822559]
[1755176527780,0.01494034,118380.0,118360.0,0.84719835]
[1755176528016,0.01494034,118380.0,118360.0,0.66083835]
[1755176528216,0.01494034,118380.0,118370.0,0.70224173]
[1755176528562,0.12331,118440.0,118390.0,0.17737906]
[1755176528819,0.17731107,118430.0,118390.0,0.03547664]
[1755176529125,0.01810818,118430.0,118390.0,0.5173796]
[1755176529328,0.0233731,118430.0,118400.0,0.17736465]
[1755176529534,0.01493818,118430.0,118410.0,0.16890386]
[1755176529740,0.01493818,118430.0,118420.0,1.21933039]
[1755176530099,0.01493818,118430.0,118420.0,0.71933039]
[1755176530304,0.01493818,118430.0,118420.0,1.17020784]
[1755176530528,0.01493818,118430.0,118420.0,0.83633088]
[1755176530728,0.00317,118480.0,118450.0,0.00844238]
[1755176530931,0.01493025,118480.0,118440.0,0.19475366]
[1755176531135,0.067465,118470.0,118450.0,0.08272325]
[1755176531336,0.08239525,118470.0,118450.0,0.25156949]
[1755176531563,0.08239525,118470.0,118460.0,0.16883336]
[1755176531723,0.08239525,118470.0,118460.0,0.08272325]
[1755176531927,0.08239525,118470.0,118460.0,0.25155661]
[1755176532134,0.08239525,118470.0,118460.0,0.12476359]
[1755176532333,0.08239525,118470.0,118460.0,0.29359695]
[1755176532528,0.01493025,118470.0,118460.0,0.29359695]
[1755176532752,0.01493025,118470.0,118460.0,0.25155661]
[1755176533325,0.01493025,118470.0,118460.0,0.25479661]
[1755176533525,0.067465,118500.0,118470.0,0.00844095]
[1755176533818,0.067465,118500.0,118490.0,0.16879061]
[1755176533819,0.01492836,118500.0,118490.0,0.16879061]
[1755176534020,0.01492836,118500.0,118490.0,0.25151386]
[1755176534241,0.01492836,118500.0,118490.0,0.31618061]
[1755176534802,0.01809836,118500.0,118490.0,0.08272325]
[1755176535001,0.13823836,118500.0,118490.0,0.10017227]
[1755176535210,0.13823836,118500.0,118490.0,0.08272325]
[1755176535823,0.01809836,118500.0,118480.0,0.39192405]
[1755176535971,0.01492836,118500.0,118490.0,0.08272325]
[1755176536175,0.01492836,118500.0,118490.0,0.64221859]
[1755176536346,0.01492836,118500.0,118490.0,0.65966761]
[1755176536980,0.0074655,118560.0,118550.0,0.16870518]
[1755176537189,0.068465,118580.0,118560.0,0.16868741]
[1755176537387,0.068465,118580.0,118570.0,0.08272325]
[1755176537388,0.001,118580.0,118570.0,0.08272325]
[1755176537607,0.001,118580.0,118570.0,0.10786432]
[1755176538210,0.00091533,118580.0,118570.0,0.10786432]
[1755176538497,0.00091533,118580.0,118570.0,0.08272325]
[1755176538699,0.00843383,118570.0,118490.0,0.26651391]
[1755176538899,0.067465,118550.0,118530.0,0.08272325]
[1755176539124,0.070635,118550.0,118530.0,0.08272325]
[1755176539355,0.070635,118550.0,118540.0,0.23148]
[1755176539554,0.00317,118550.0,118540.0,0.34562358]
[1755176539728,0.00317,118570.0,118540.0,0.34562358]
[1755176539926,0.12105533,118580.0,118550.0,0.25986316]
[1755176540125,0.00091533,118580.0,118560.0,0.16869058]
[1755176540490,0.07272992,118620.0,118580.0,0.1686625]
[1755176540687,0.07272992,118620.0,118590.0,0.31376325]
[1755176540688,0.067465,118620.0,118590.0,0.31376325]
[1755176540932,0.067465,118640.0,118600.0,0.17706502]
[1755176541109,0.12540492,118640.0,118610.0,0.25977404]
[1755176541314,0.12014,118640.0,118620.0,0.16860543]
[1755176541563,0.12014,118640.0,118630.0,0.31376325]
[1755176541751,0.09281197,118660.0,118630.0,0.36965755]
[1755176541956,0.0178761,118660.0,118650.0,0.168563]
[1755176542157,0.0178761,118660.0,118640.0,0.16857619]
[1755176542381,0.0178761,118660.0,118640.0,0.08272325]
[1755176542599,0.0210461,118660.0,118640.0,0.08272325]
[1755176542789,0.0210461,118660.0,118640.0,0.11414358]
[1755176542987,0.0178761,118660.0,118650.0,0.08272325]
[1755176543417,0.02534697,118660.0,118650.0,0.08272325]
[1755176543741,0.02851697,118660.0,118650.0,0.23044]
[1755176544149,0.02851697,118660.0,118650.0,0.23038396]
[1755176544372,0.02851697,118660.0,118640.0,0.03142033]
[1755176544573,0.0210461,118660.0,118640.0,0.31316325]
[1755176544779,0.0178761,118660.0,118650.0,0.08272325]
[1755176545459,0.0178761,118660.0,118650.0,0.25128625]
[1755176545685,0.0178761,118660.0,118650.0,0.08272325]
[1755176545914,0.0178761,118660.0,118650.0,0.25128625]
[1755176546136,0.0178761,118660.0,118650.0,0.3166403]
[1755176546370,0.0178761,118660.0,118650.0,0.31308325]
[1755176546645,0.14961353,118660.0,118630.0,0.23036]
[1755176546841,0.12594379,118650.0,118610.0,0.23044]
[1755176547068,0.00842957,118630.0,118610.0,0.23044]
[1755176547264,0.00842957,118630.0,118550.0,0.07590025]
[1755176547265,0.17705083,118610.0,118560.0,0.00324]
[1755176547395,0.16864895,118590.0,118580.0,0.025274]
[1755176547596,0.16864895,118590.0,118560.0,0.23024]
[1755176547597,0.16866475,118580.0,118560.0,0.23024]
[1755176547803,0.30568653,118570.0,118520.0,0.00324]
[1755176548024,0.24941335,118560.0,118550.0,0.025281]
[1755176548256,0.17714716,118550.0,118520.0,0.23008]
[1755176548476,0.00526492,118540.0,118520.0,0.23008]
[1755176548682,0.00526492,118540.0,118520.0,0.2556169]
[1755176549114,0.16873365,118530.0,118520.0,0.23008]
[1755176549320,0.17717033,118530.0,118500.0,0.22984]
[1755176549538,0.17401319,118520.0,118480.0,0.23308]
[1755176549751,0.31231658,118530.0,118490.0,0.08272325]
[1755176549966,0.17401389,118520.0,118490.0,0.09131957]
[1755176550179,0.38841014,118510.0,118450.0,0.028547]
[1755176550437,0.00526492,118500.0,118460.0,0.31220325]
[1755176550637,0.00263713,118500.0,118460.0,0.31220325]
[1755176550840,0.31234658,118510.0,118460.0,0.31544325]
[1755176551054,0.17721709,118500.0,118460.0,0.13874284]
[1755176551276,0.17717033,118530.0,118470.0,0.24088095]
[1755176551481,0.00526492,118520.0,118470.0,0.40125792]
[1755176551747,0.01500674,118530.0,118480.0,0.01168024]
[1755176551935,0.01500674,118530.0,118480.0,0.00324]
[1755176551936,0.00843739,118520.0,118480.0,0.00324]
[1755176552123,0.00526492,118520.0,118490.0,0.31640325]
[1755176552331,0.17398542,118540.0,118500.0,0.02068902]
[1755176552543,0.00526492,118530.0,118510.0,0.08272325]
[1755176552995,0.00526492,118550.0,118510.0,0.09440135]
[1755176553213,0.02344128,118560.0,118510.0,0.26316264]
[1755176553407,0.17397102,118550.0,118510.0,0.08596325]
[1755176553616,0.2919161,118550.0,118510.0,0.08272325]
[1755176553827,0.1771561,118540.0,118510.0,0.08272325]
[1755176554042,0.00526492,118530.0,118510.0,0.08272325]
[1755176554464,0.13514674,118550.0,118520.0,0.40982454]
[1755176554465,0.00526492,118550.0,118520.0,0.40982454]
[1755176554677,0.00262891,118550.0,118520.0,0.08596325]
[1755176554889,0.12583891,118550.0,118530.0,0.22928]
[1755176555257,0.17135646,118540.0,118520.0,0.2292]
[1755176555395,0.00263646,118530.0,118520.0,0.2292]
[1755176555758,0.30038033,118530.0,118480.0,0.00324]
[1755176555956,0.30038033,118530.0,118480.0,0.08272325]
[1755176555957,0.30039541,118520.0,118480.0,0.08272325]
[1755176556174,0.00526492,118510.0,118490.0,0.22888]
[1755176556308,0.17402782,118510.0,118490.0,0.22888]
[1755176556508,0.00526492,118500.0,118490.0,0.22864]
[1755176557027,0.00526492,118510.0,118490.0,0.22864]
[1755176557155,0.17709743,118510.0,118490.0,0.22864]
[1755176557362,0.16877851,118500.0,118460.0,0.00324]
[1755176557580,0.00526492,118490.0,118480.0,0.2282]
[1755176558003,0.01370445,118490.0,118470.0,0.22796]
[1755176558245,0.00526492,118490.0,118470.0,0.22796]
[1755176558482,0.1740559,118490.0,118470.0,0.22796]
[1755176558714,0.17988245,118480.0,118470.0,0.22796]
[1755176558937,0.37570376,118490.0,118460.0,0.22732]
[1755176559165,0.39074248,118490.0,118460.0,0.22732]
[1755176559391,0.01503872,118490.0,118470.0,0.08272325]
[1755176559629,0.00307,118520.0,118470.0,0.25447899]
[1755176559630,0.02338278,118520.0,118470.0,0.25447899]
[1755176559831,0.00526492,118510.0,118480.0,0.00294]
[1755176560075,0.21878603,118510.0,118480.0,0.2268]
[1755176560374,0.21352111,118510.0,118480.0,0.2268]
[1755176560612,0.01504786,118510.0,118500.0,0.16877637]
[1755176560863,0.01504786,118540.0,118520.0,0.168746]
[1755176561103,0.01504786,118540.0,118520.0,0.49566823]
[1755176561328,0.01504786,118540.0,118530.0,0.27184592]
[1755176561536,0.00526448,118570.0,118540.0,0.18616843]
[1755176561537,0.01504786,118570.0,118540.0,0.18616843]
[1755176561757,0.01504786,118570.0,118560.0,0.16869095]
[1755176562020,0.01504786,118570.0,118560.0,0.2543542]
[1755176562253,0.01504786,118570.0,118560.0,0.33673308]
[1755176562892,0.01504786,118570.0,118560.0,0.27180322]
[1755176564051,0.00526492,118610.0,118600.0,0.16863406]
[1755176564052,0.02031278,118610.0,118600.0,0.16863406]
[1755176564281,0.02031278,118610.0,118600.0,0.49758633]
[1755176564282,0.01504786,118610.0,118600.0,0.49758633]
[1755176564805,0.01504786,118610.0,118570.0,0.16864765]
[1755176564806,0.01504786,118610.0,118570.0,0.17158765]
[1755176565052,0.067465,118590.0,118580.0,0.30820325]
[1755176565483,0.01504786,118590.0,118580.0,0.30820325]
[1755176565714,0.01504786,118590.0,118570.0,0.03402786]
[1755176565960,0.02031278,118590.0,118580.0,0.22552]
[1755176566464,0.02031278,118590.0,118560.0,0.22508]
[1755176566688,0.01504786,118590.0,118570.0,0.08272325]
[1755176566936,0.0700999,118580.0,118570.0,0.22484]
[1755176567160,0.25425536,118580.0,118570.0,0.22484]
[1755176567383,0.00843383,118570.0,118530.0,0.20522]
[1755176567603,0.17712608,118560.0,118520.0,0.01771841]
[1755176567827,0.00526492,118550.0,118530.0,0.2246]
[1755176568055,0.16871943,118540.0,118500.0,0.00294]
[1755176568287,0.17399976,118530.0,118510.0,0.2246]
[1755176568534,0.00526492,118520.0,118510.0,0.22448]
[1755176568733,0.17399946,118530.0,118510.0,0.22448]
[1755176568997,0.17401281,118520.0,118510.0,0.22448]
[1755176569217,0.16874789,118520.0,118510.0,0.22448]
[1755176569674,0.1772089,118510.0,118490.0,0.22428]
[1755176569911,0.19223314,118520.0,118490.0,0.22428]
[1755176570132,0.18379667,118520.0,118490.0,0.30994325]
[1755176570365,0.01504786,118520.0,118500.0,0.08566325]
[1755176570589,0.1739997,118530.0,118500.0,0.08566325]
[1755176570817,0.1687337,118530.0,118500.0,0.08566325]
[1755176571126,0.16874791,118520.0,118500.0,0.08272325]
[1755176571361,0.19222232,118530.0,118500.0,0.08272325]
[1755176571593,0.01505194,118530.0,118500.0,0.12148541]
[1755176571798,0.17399924,118530.0,118500.0,0.12148541]
[1755176572009,0.25967234,118540.0,118500.0,0.12148541]
[1755176572226,0.00526492,118530.0,118510.0,0.00294]
[1755176572437,0.00526492,118530.0,118520.0,0.223]
[1755176573457,0.18905051,118530.0,118490.0,0.05415832]
[1755176573684,0.17718762,118520.0,118500.0,0.08272325]
[1755176573901,0.18246514,118510.0,118490.0,0.22252]
[1755176574115,0.01505194,118510.0,118490.0,0.30524325]
[1755176574317,0.00526492,118510.0,118490.0,0.30818325]
[1755176574517,0.00526492,118510.0,118490.0,0.30524325]
[1755176574929,0.01508014,118520.0,118500.0,0.08566325]
[1755176575136,0.01508014,118520.0,118500.0,0.08272325]
[1755176575568,0.01508014,118520.0,118510.0,0.00294]
[1755176575773,0.00526492,118540.0,118520.0,0.16874749]
[1755176575774,0.01508014,118540.0,118520.0,0.16874749]
[1755176576037,0.01508014,118540.0,118530.0,0.22786]
[1755176576265,0.01508014,118540.0,118530.0,0.347304]
[1755176576474,0.01508014,118540.0,118530.0,0.08272325]
[1755176576680,0.01508014,118540.0,118510.0,0.24526902]
[1755176576886,0.00526492,118530.0,118510.0,0.08566325]
[1755176577089,0.01508014,118530.0,118510.0,0.08272325]
[1755176577579,0.01508014,118530.0,118520.0,0.10017227]
[1755176577807,0.00526492,118570.0,118530.0,0.01744902]
[1755176578033,0.17712559,118560.0,118530.0,0.08272325]
[1755176578258,0.17397023,118550.0,118530.0,0.08272325]
[1755176578487,0.17398526,118540.0,118510.0,0.2246]
[1755176578712,0.00526492,118530.0,118510.0,0.30732325]
[1755176578953,0.00526492,118530.0,118500.0,0.00294]
[1755176578954,0.19751602,118530.0,118500.0,0.2238]
[1755176579162,0.18245061,118520.0,118490.0,0.2238]
[1755176579371,0.00526492,118510.0,118490.0,0.30652325]
[1755176579786,0.00526492,118510.0,118490.0,0.30946325]
[1755176579986,0.00526492,118510.0,118490.0,0.30652325]
[1755176580199,0.17402749,118510.0,118490.0,0.30652325]
[1755176580408,0.00843739,118520.0,118490.0,0.30946325]
[1755176580617,0.19757836,118520.0,118490.0,0.30946325]
[1755176580832,0.16876466,118510.0,118490.0,0.08272325]
[1755176581045,0.17720276,118510.0,118480.0,0.223]
[1755176581257,0.1772163,118500.0,118480.0,0.08272325]
[1755176581464,0.17720276,118510.0,118480.0,0.08566325]
[1755176581672,0.0052647,118500.0,118470.0,0.22296]
[1755176581880,0.17404189,118500.0,118470.0,0.30862325]
[1755176582084,0.17720276,118510.0,118470.0,0.30862325]
[1755176582295,0.1824804,118500.0,118470.0,0.11827048]
[1755176582504,0.1824804,118500.0,118420.0,0.20259661]
[1755176582505,0.00844238,118450.0,118420.0,0.00294]
[1755176582714,0.00526492,118440.0,118420.0,0.00294]
[1755176582926,0.00526492,118450.0,118420.0,0.00294]
[1755176583339,0.00526492,118450.0,118420.0,0.08566325]
[1755176583549,0.00526492,118450.0,118420.0,0.08272325]
[1755176583763,0.16887612,118430.0,118420.0,0.08272325]
[1755176583978,0.17731992,118430.0,118400.0,0.22272]
[1755176584193,0.00526492,118420.0,118400.0,0.22566]
[1755176584411,0.17414269,118430.0,118400.0,0.354869]
[1755176584616,0.17732157,118430.0,118400.0,0.30838325]
[1755176584845,0.16889055,118420.0,118400.0,0.08566325]
[1755176585054,0.17733965,118420.0,118390.0,0.2228]
[1755176585261,0.28999621,118450.0,118390.0,0.23124665]
[1755176585470,0.28999621,118450.0,118390.0,0.42414649]
[1755176585471,0.1741297,118440.0,118390.0,0.42414649]
[1755176585677,0.29307621,118450.0,118400.0,0.08272325]
[1755176585887,0.0084438,118430.0,118400.0,0.08272325]
[1755176586113,0.1825999,118420.0,118400.0,0.08272325]
[1755176586350,0.17733498,118420.0,118390.0,0.21215079]
[1755176586559,0.17735289,118410.0,118370.0,0.20272]
[1755176586766,0.00844594,118400.0,118380.0,0.08272325]
[1755176586985,0.18040566,118400.0,118370.0,0.0004]
[1755176587238,0.16894745,118380.0,118370.0,0.0004]
[1755176587448,0.16894745,118380.0,118330.0,0.22424]
[1755176587449,0.16899447,118350.0,118330.0,0.22424]
[1755176587667,0.18048398,118350.0,118310.0,0.29810689]
[1755176587877,0.00830492,118340.0,118300.0,0.22424]
[1755176588086,0.00526492,118340.0,118300.0,0.22424]
[1755176588298,0.00526492,118340.0,118310.0,0.08272325]
[1755176588526,0.17726765,118370.0,118310.0,0.26022113]
[1755176588738,0.17726765,118370.0,118320.0,0.17748191]
[1755176588739,0.00526492,118360.0,118320.0,0.17748191]
[1755176588962,0.00526492,118360.0,118320.0,0.17748357]
[1755176589166,0.00830492,118360.0,118310.0,0.32641854]
[1755176589379,0.00526492,118360.0,118330.0,0.00845094]
[1755176589587,0.00526492,118370.0,118330.0,0.18066791]
[1755176589827,0.00526492,118370.0,118340.0,0.08272325]
[1755176590033,0.18571516,118370.0,118340.0,0.30832325]
[1755176590258,0.21612799,118380.0,118340.0,0.30824325]
[1755176590465,0.00830492,118370.0,118340.0,0.30824325]
[1755176590676,0.04399706,118380.0,118350.0,0.01744902]
[1755176590885,0.04399706,118380.0,118340.0,0.30629112]
[1755176590886,0.04703706,118380.0,118340.0,0.30629112]
[1755176591100,0.00526492,118380.0,118350.0,0.17743884]
[1755176591306,0.0052647,118390.0,118360.0,0.25169901]
[1755176591515,0.16895281,118380.0,118360.0,0.08272325]
[1755176591720,0.00526492,118370.0,118340.0,0.22548]
[1755176591930,0.17422748,118370.0,118350.0,0.08272325]
[1755176592140,0.01371372,118360.0,118340.0,0.2256]
[1755176592393,0.01371372,118360.0,118320.0,0.20244]
[1755176592394,0.17744305,118350.0,118320.0,0.20244]
[1755176592600,0.00526492,118340.0,118330.0,0.22552]
[1755176592810,0.00304,118350.0,118320.0,0.08272325]
[1755176592811,0.00830492,118350.0,118320.0,0.08272325]
[1755176593018,0.17729556,118350.0,118320.0,0.30800325]
[1755176593240,0.17203064,118350.0,118320.0,0.30800325]
[1755176593445,0.070505,118350.0,118320.0,0.30800325]
[1755176593682,0.00304,118370.0,118330.0,0.10017227]
[1755176593896,0.00304,118360.0,118330.0,0.10017227]
[1755176594132,0.18046541,118360.0,118330.0,0.32517227]
[1755176594309,0.00304,118350.0,118330.0,0.24244902]
[1755176594560,0.24489041,118360.0,118330.0,0.01744902]
[1755176594793,0.18049606,118340.0,118290.0,0.23317379]
[1755176595015,0.00304,118340.0,118290.0,0.22472]
[1755176595218,0.00304,118340.0,118290.0,0.22792]
[1755176595219,0.00304,118330.0,118290.0,0.22792]
[1755176595665,0.18048081,118350.0,118300.0,0.08272325]
[1755176595876,0.00304,118340.0,118300.0,0.08592325]
[1755176596081,0.17744122,118350.0,118310.0,0.02064902]
[1755176596295,0.01148951,118350.0,118320.0,0.08272325]
[1755176596511,0.18574605,118350.0,118320.0,0.08272325]
[1755176596737,0.18049642,118340.0,118310.0,0.01744902]
[1755176596942,0.1774559,118340.0,118310.0,0.10017227]
[1755176597161,0.18051002,118330.0,118300.0,0.22476]
[1755176597378,0.00526492,118320.0,118300.0,0.30748325]
[1755176597580,0.00526492,118330.0,118300.0,0.30748325]
[1755176597788,0.00830492,118330.0,118300.0,0.30748325]
[1755176598008,0.067465,118340.0,118310.0,0.08272325]
[1755176598184,0.07272992,118340.0,118310.0,0.11379157]
[1755176598420,0.24477676,118340.0,118310.0,0.08272325]
[1755176598625,0.24796206,118340.0,118310.0,0.08272325]
[1755176598827,0.07895522,118340.0,118310.0,0.08272325]
[1755176599036,0.24489041,118360.0,118310.0,0.08272325]
[1755176599037,0.070505,118360.0,118320.0,0.17748426]
[1755176599242,0.067465,118360.0,118330.0,0.08272325]
[1755176599459,0.00526492,118350.0,118330.0,0.08272325]
[1755176599661,0.070505,118380.0,118340.0,0.22416]
[1755176599871,0.067465,118380.0,118350.0,0.08272325]
[1755176600081,0.070505,118400.0,118360.0,0.01744902]
[1755176600292,0.07576992,118400.0,118360.0,0.01744902]
[1755176600503,0.067465,118400.0,118380.0,0.01744902]
[1755176600712,0.067465,118420.0,118390.0,0.30664325]
[1755176600927,0.00526492,118430.0,118400.0,0.01744902]
[1755176601139,0.00526492,118430.0,118400.0,0.10017227]
[1755176601550,0.00526492,118430.0,118410.0,0.08272325]
[1755176601760,0.18033116,118450.0,118420.0,0.2232]
[1755176602003,0.17716901,118440.0,118420.0,0.2232]
[1755176602204,0.24778075,118460.0,118420.0,0.331944]
[1755176602436,0.01506714,118460.0,118430.0,0.22284]
[1755176602858,0.01506714,118460.0,118390.0,0.20136997]
[1755176602859,0.16890023,118430.0,118370.0,0.02185169]
[1755176603066,0.16890023,118430.0,118370.0,0.22256]
[1755176603067,0.00526492,118420.0,118370.0,0.22256]
[1755176603276,0.00526492,118420.0,118370.0,0.22576]
[1755176603487,0.01506808,118420.0,118390.0,0.16893208]
[1755176603699,0.01506808,118450.0,118400.0,0.48584796]
[1755176603919,0.01506808,118450.0,118410.0,0.0032]
[1755176603920,0.19235912,118450.0,118410.0,0.0032]
[1755176604130,0.18392073,118450.0,118420.0,0.08272325]
[1755176604410,0.01506808,118450.0,118430.0,0.2222]
[1755176604639,0.01506808,118450.0,118440.0,0.08272325]
[1755176604874,0.01506808,118450.0,118440.0,0.10017227]
[1755176605342,0.01506808,118450.0,118440.0,0.30476325]
[1755176605557,0.01506808,118450.0,118440.0,0.32221227]
[1755176606175,0.01506808,118450.0,118440.0,0.30500325]
[1755176606384,0.01506808,118450.0,118440.0,0.30448325]
[1755176606814,0.01506808,118450.0,118440.0,0.10017227]
[1755176607020,0.01506808,118450.0,118440.0,0.32181227]
[1755176607232,0.01506808,118450.0,118420.0,0.01744902]
[1755176607442,0.26812964,118450.0,118440.0,0.2214]
[1755176607667,0.3074052,118450.0,118420.0,0.22136]
[1755176607883,0.3074052,118450.0,118400.0,0.20256]
[1755176607884,0.16889086,118420.0,118400.0,0.20256]
[1755176608096,0.18565799,118410.0,118360.0,0.2395038]
[1755176608315,0.18567124,118400.0,118370.0,0.30388325]
[1755176608535,0.00830492,118390.0,118370.0,0.30388325]
[1755176608744,0.00830492,118390.0,118340.0,0.02533]
[1755176608745,0.18043492,118380.0,118340.0,0.02533]
[1755176608992,0.18043492,118380.0,118360.0,0.221]
[1755176608993,0.00526492,118370.0,118360.0,0.221]
[1755176609196,0.023373,118370.0,118360.0,0.221]
[1755176609640,0.01506808,118370.0,118360.0,0.221]
[1755176609845,0.0176932,118370.0,118360.0,0.221]
[1755176610077,0.020333,118370.0,118360.0,0.221]
[1755176610697,0.020333,118370.0,118350.0,0.08272325]
[1755176610698,0.01506808,118370.0,118350.0,0.08272325]
[1755176610900,0.00526492,118360.0,118340.0,0.22024]
[1755176611105,0.023373,118360.0,118310.0,0.38316944]
[1755176611327,0.0318218,118360.0,118320.0,0.30272325]
[1755176611531,0.00526492,118350.0,118320.0,0.37131744]
[1755176611739,0.020333,118350.0,118320.0,0.37131744]
[1755176611942,0.020333,118350.0,118320.0,0.55200085]
[1755176611943,0.01506808,118350.0,118320.0,0.55200085]
[1755176612599,0.01506808,118350.0,118330.0,0.16901792]
[1755176612778,0.00830492,118380.0,118340.0,0.28082705]
[1755176613026,0.02039776,118380.0,118350.0,0.21932]
[1755176613254,0.02039776,118380.0,118360.0,0.08272325]
[1755176613255,0.01513284,118380.0,118360.0,0.08272325]
[1755176613462,0.01513284,118380.0,118370.0,0.18641075]
[1755176613672,0.01513284,118380.0,118370.0,0.272334]
[1755176613892,0.067465,118430.0,118390.0,0.17737187]
[1755176614076,0.08787269,118430.0,118400.0,0.30164325]
[1755176614557,0.01514277,118430.0,118410.0,0.01744902]
[1755176614762,0.01514277,118430.0,118420.0,0.08272325]
[1755176615207,0.01514277,118430.0,118420.0,0.30132325]
[1755176615415,0.01514277,118430.0,118410.0,0.21828]
[1755176615416,0.19232381,118430.0,118410.0,0.21828]
[1755176615622,0.01514277,118430.0,118410.0,0.30100325]
[1755176615829,0.08787269,118430.0,118410.0,0.30100325]
[1755176616248,0.25978922,118430.0,118420.0,0.218]
[1755176616472,0.08564777,118430.0,118390.0,0.06859419]
[1755176616677,0.02040769,118430.0,118400.0,0.30040325]
[1755176616883,0.18928499,118430.0,118400.0,0.30040325]
[1755176617103,0.19549387,118430.0,118410.0,0.2174]
[1755176617516,0.19549387,118430.0,118400.0,0.08272325]
[1755176618188,0.18563048,118420.0,118410.0,0.21692]
[1755176618397,0.00844665,118390.0,118330.0,0.17746886]
[1755176618611,0.0026398,118380.0,118350.0,0.025333]
[1755176618821,0.01514277,118380.0,118360.0,0.00306]
[1755176619051,0.01514277,118380.0,118370.0,0.2166]
[1755176619266,0.01514277,118380.0,118360.0,0.00306]
[1755176619483,0.01817277,118380.0,118360.0,0.21656]
[1755176619719,0.17726212,118370.0,118330.0,0.025336]
[1755176619928,0.18045516,118360.0,118340.0,0.21656]
[1755176620143,0.00829492,118350.0,118340.0,0.21656]
[1755176620364,0.02343769,118350.0,118340.0,0.21656]
[1755176620577,0.19242797,118350.0,118340.0,0.21656]
[1755176620789,0.00845022,118340.0,118320.0,0.21632]
[1755176621024,0.00526492,118330.0,118320.0,0.21632]
[1755176621233,0.02040769,118330.0,118320.0,0.21632]
[1755176621440,0.00526492,118330.0,118320.0,0.21632]
[1755176621670,0.02039191,118330.0,118320.0,0.21632]
[1755176622494,0.00526492,118330.0,118320.0,0.21632]
[1755176623350,0.0757597,118340.0,118320.0,0.21632]
[1755176623557,0.08784461,118340.0,118320.0,0.21632]
[1755176623773,0.00303,118360.0,118320.0,0.47652701]
[1755176623990,0.02038146,118360.0,118330.0,0.08272325]
[1755176624212,0.00844951,118350.0,118300.0,0.02050902]
[1755176624416,0.17427581,118340.0,118310.0,0.29792325]
[1755176624628,0.16903747,118320.0,118280.0,0.00306]
[1755176624863,0.16904741,118310.0,118300.0,0.21516]
[1755176625071,0.16903747,118320.0,118300.0,0.29788325]
[1755176625072,0.17206747,118320.0,118300.0,0.29788325]
[1755176625280,0.16904741,118310.0,118300.0,0.21516]